[Event "*** SCC Grand Prix: Titled Tuesday Blitz"]
[Site "Chess.com"]
[Date "2020.09.29"]
[Round "3"]
[White "zajka-molotok"]
[Black "SophieNikoladze"]
[Result "0-1"]
[WhiteElo "2485"]
[BlackElo "2291"]
[TimeControl "180+1"]
[EndTime "10:26:20 PDT"]
[Termination "SophieNikoladze won by resignation"]

1. d4 {[%clk 0:03:00.9]} 1... b5 {[%clk 0:02:59.1]} 2. e4 {[%clk 0:03:00.2]}
2... Bb7 {[%clk 0:02:59.2]} 3. Bd3 {[%clk 0:02:48.8]} 3... e6 {[%clk 0:02:57.4]}
4. Nf3 {[%clk 0:02:46.9]} 4... a6 {[%clk 0:02:53.7]} 5. O-O {[%clk 0:02:46.5]}
5... c5 {[%clk 0:02:53.3]} 6. c3 {[%clk 0:02:44.4]} 6... d6 {[%clk 0:02:50.3]}
7. a4 {[%clk 0:02:42.8]} 7... c4 {[%clk 0:02:48.8]} 8. Bc2 {[%clk 0:02:42.2]}
8... Nd7 {[%clk 0:02:46.6]} 9. Na3 {[%clk 0:02:38.1]} 9... Qb6 {[%clk 0:02:40]}
10. d5 {[%clk 0:02:20.4]} 10... e5 {[%clk 0:02:37.4]} 11. Be3 {[%clk 0:02:18.6]}
11... Nc5 {[%clk 0:02:36.9]} 12. b4 {[%clk 0:02:03.8]} 12... cxb3 {[%clk
0:02:34.3]} 13. Bxb3 {[%clk 0:02:04.2]} 13... Nf6 {[%clk 0:02:26.4]} 14. Bc2
{[%clk 0:01:48.2]} 14... Be7 {[%clk 0:02:13.5]} 15. axb5 {[%clk 0:01:46.9]}
15... axb5 {[%clk 0:02:12.8]} 16. c4 {[%clk 0:01:47.1]} 16... b4 {[%clk
0:02:10.6]} 17. Nb5 {[%clk 0:01:46.4]} 17... O-O {[%clk 0:02:09.1]} 18. Nd2
{[%clk 0:01:44.3]} 18... Rxa1 {[%clk 0:01:56.1]} 19. Qxa1 {[%clk 0:01:45.2]}
19... Ra8 {[%clk 0:01:55.5]} 20. Qb1 {[%clk 0:01:37]} 20... Qa5 {[%clk
0:01:54.6]} 21. Nb3 {[%clk 0:01:09.6]} 21... Qa2 {[%clk 0:01:47.5]} 22. f3
{[%clk 0:00:33.5]} 22... Nfd7 {[%clk 0:01:44.8]} 23. Bd2 {[%clk 0:00:28.1]}
23... Qxb1 {[%clk 0:01:40.2]} 24. Rxb1 {[%clk 0:00:26.9]} 24... Ra2 {[%clk
0:01:39.9]} 25. Rc1 {[%clk 0:00:09.5]} 25... Nxb3 {[%clk 0:01:38.1]} 26. Bxb3
{[%clk 0:00:10.4]} 26... Rxd2 {[%clk 0:01:38]} 27. Ra1 {[%clk 0:00:10.6]} 27...
Nc5 {[%clk 0:01:35.1]} 28. Ra7 {[%clk 0:00:07.6]} 28... g6 {[%clk 0:01:31.8]}
29. h3 {[%clk 0:00:06.9]} 29... Rb2 {[%clk 0:01:25.2]} 30. Bd1 {[%clk
0:00:05.6]} 30... Rb1 {[%clk 0:01:25]} 31. Kh2 {[%clk 0:00:05.7]} 31... Rxd1
{[%clk 0:01:24.9]} 32. Nc7 {[%clk 0:00:04.8]} 32... b3 {[%clk 0:01:24]} 0-1

[Event "*** SCC Grand Prix: Titled Tuesday Blitz"]
[Site "Chess.com"]
[Date "2020.09.29"]
[Round "3"]
[White "Smirnov_Pavel"]
[Black "Andreikka"]
[Result "1-0"]
[WhiteElo "2678"]
[BlackElo "2843"]
[TimeControl "180+1"]
[EndTime "10:26:23 PDT"]
[Termination "Smirnov_Pavel won by resignation"]

1. d4 {[%clk 0:02:57.7]} 1... Nf6 {[%clk 0:02:55.3]} 2. c4 {[%clk 0:02:57.8]}
2... e6 {[%clk 0:02:51.2]} 3. Nf3 {[%clk 0:02:57.6]} 3... d5 {[%clk 0:02:50.1]}
4. Nc3 {[%clk 0:02:58]} 4... Be7 {[%clk 0:02:43.4]} 5. Bf4 {[%clk 0:02:57.3]}
5... O-O {[%clk 0:02:39.9]} 6. e3 {[%clk 0:02:57.8]} 6... c5 {[%clk 0:02:38.5]}
7. dxc5 {[%clk 0:02:53.2]} 7... Bxc5 {[%clk 0:02:38.1]} 8. Rc1 {[%clk
0:02:52.8]} 8... Nc6 {[%clk 0:02:18.2]} 9. Be2 {[%clk 0:02:51]} 9... d4 {[%clk
0:02:17]} 10. exd4 {[%clk 0:02:46.7]} 10... Nxd4 {[%clk 0:02:17.9]} 11. O-O
{[%clk 0:02:46]} 11... Nxe2+ {[%clk 0:02:00.3]} 12. Qxe2 {[%clk 0:02:46.9]}
12... b6 {[%clk 0:01:59.7]} 13. Rfd1 {[%clk 0:02:41.8]} 13... Qe7 {[%clk
0:01:59.1]} 14. a3 {[%clk 0:02:41.9]} 14... a5 {[%clk 0:01:58.4]} 15. Na4 {[%clk
0:02:39.8]} 15... Re8 {[%clk 0:01:48.1]} 16. Nxc5 {[%clk 0:02:28.2]} 16... Qxc5
{[%clk 0:01:47.5]} 17. Bd6 {[%clk 0:02:20.6]} 17... Qc6 {[%clk 0:01:47.3]} 18.
Ne5 {[%clk 0:02:10.2]} 18... Qe4 {[%clk 0:01:46]} 19. Qxe4 {[%clk 0:02:04.6]}
19... Nxe4 {[%clk 0:01:46.9]} 20. Bc7 {[%clk 0:02:04.9]} 20... f6 {[%clk
0:01:33.9]} 21. Nc6 {[%clk 0:01:56.2]} 21... Ra6 {[%clk 0:01:21.9]} 22. b4
{[%clk 0:01:54.2]} 22... axb4 {[%clk 0:00:57.8]} 23. axb4 {[%clk 0:01:55.1]}
23... Bb7 {[%clk 0:00:45.7]} 24. b5 {[%clk 0:01:53.6]} 24... Ra2 {[%clk
0:00:41]} 25. Bxb6 {[%clk 0:01:48.7]} 25... h5 {[%clk 0:00:20.1]} 26. f3 {[%clk
0:01:20]} 26... Ng5 {[%clk 0:00:19.7]} 27. h4 {[%clk 0:01:20.5]} 27... Nf7
{[%clk 0:00:19.4]} 28. Rd7 {[%clk 0:01:19.5]} 28... Bc8 {[%clk 0:00:14.9]} 29.
Ne7+ {[%clk 0:01:16.4]} 29... Kf8 {[%clk 0:00:12.6]} 30. Rc7 {[%clk 0:01:15.3]}
30... Nd6 {[%clk 0:00:08.7]} 31. Bc5 {[%clk 0:01:12.3]} 1-0

[Event "*** SCC Grand Prix: Titled Tuesday Blitz"]
[Site "Chess.com"]
[Date "2020.09.29"]
[Round "3"]
[White "grunbergmihai"]
[Black "MarkoPe"]
[Result "1-0"]
[WhiteElo "2465"]
[BlackElo "2151"]
[TimeControl "180+1"]
[EndTime "10:26:24 PDT"]
[Termination "grunbergmihai won by resignation"]

1. Nf3 {[%clk 0:03:00.9]} 1... c5 {[%clk 0:02:53.3]} 2. c4 {[%clk 0:03:01.4]}
2... Nf6 {[%clk 0:02:52.5]} 3. d4 {[%clk 0:03:01.5]} 3... cxd4 {[%clk
0:02:52.4]} 4. Nxd4 {[%clk 0:03:02.4]} 4... Nc6 {[%clk 0:02:52.8]} 5. Nc3 {[%clk
0:03:02.6]} 5... g6 {[%clk 0:02:53.3]} 6. e4 {[%clk 0:03:01.2]} 6... d6 {[%clk
0:02:52.8]} 7. Be2 {[%clk 0:02:59.8]} 7... Nxd4 {[%clk 0:02:50.6]} 8. Qxd4
{[%clk 0:02:59.6]} 8... Bg7 {[%clk 0:02:51]} 9. Bg5 {[%clk 0:03:00]} 9... O-O
{[%clk 0:02:48.9]} 10. Qd2 {[%clk 0:03:00.3]} 10... Qa5 {[%clk 0:02:40.8]} 11.
f3 {[%clk 0:02:59.9]} 11... Be6 {[%clk 0:02:39.5]} 12. Rc1 {[%clk 0:02:55.2]}
12... Rfc8 {[%clk 0:02:35.3]} 13. b3 {[%clk 0:02:55]} 13... a6 {[%clk
0:02:27.2]} 14. Na4 {[%clk 0:02:44.6]} 14... Qxd2+ {[%clk 0:02:21.3]} 15. Kxd2
{[%clk 0:02:45.5]} 15... Rc6 {[%clk 0:02:12.3]} 16. Be3 {[%clk 0:02:36.5]} 16...
Nd7 {[%clk 0:02:08.2]} 17. c5 {[%clk 0:02:26.5]} 17... dxc5 {[%clk 0:02:06]} 18.
Nxc5 {[%clk 0:02:26.1]} 18... Nxc5 {[%clk 0:02:05.8]} 19. Rxc5 {[%clk
0:02:25.7]} 19... Rxc5 {[%clk 0:02:02.9]} 20. Bxc5 {[%clk 0:02:25.1]} 20... Kf8
{[%clk 0:02:03]} 21. Ke3 {[%clk 0:02:24.6]} 21... Ke8 {[%clk 0:02:00.9]} 22. Rd1
{[%clk 0:02:23.4]} 22... Rd8 {[%clk 0:01:59.4]} 23. Rxd8+ {[%clk 0:02:17.7]}
23... Kxd8 {[%clk 0:01:58.8]} 24. f4 {[%clk 0:02:15.7]} 24... Bd7 {[%clk
0:01:45.1]} 25. g4 {[%clk 0:02:13.2]} 25... Bc6 {[%clk 0:01:44.8]} 26. g5 {[%clk
0:02:12.4]} 26... Kd7 {[%clk 0:01:38.2]} 27. h4 {[%clk 0:02:10]} 27... e6 {[%clk
0:01:38]} 28. h5 {[%clk 0:02:06.9]} 28... Bb2 {[%clk 0:01:36.1]} 29. h6 {[%clk
0:02:03.6]} 29... Bc1+ {[%clk 0:01:27.1]} 30. Kf3 {[%clk 0:02:03.3]} 30... e5
{[%clk 0:01:27.6]} 31. Be3 {[%clk 0:01:58.5]} 31... Bxe3 {[%clk 0:01:25.2]} 32.
Kxe3 {[%clk 0:01:58.2]} 32... exf4+ {[%clk 0:01:25.7]} 33. Kxf4 {[%clk
0:01:59.1]} 33... Ke6 {[%clk 0:01:26.2]} 34. Bc4+ {[%clk 0:01:57.1]} 34... Ke7
{[%clk 0:01:25.3]} 35. Ke5 {[%clk 0:01:52.7]} 35... a5 {[%clk 0:01:22]} 36. Bd5
{[%clk 0:01:51.5]} 36... Bxd5 {[%clk 0:00:36]} 37. exd5 {[%clk 0:01:50.4]} 37...
b6 {[%clk 0:00:30.9]} 38. a4 {[%clk 0:01:48.4]} 38... Ke8 {[%clk 0:00:23.5]} 39.
Kf6 {[%clk 0:01:47.8]} 39... Kf8 {[%clk 0:00:19.5]} 40. d6 {[%clk 0:01:47.5]}
40... Ke8 {[%clk 0:00:19.9]} 41. Kg7 {[%clk 0:01:47.3]} 41... Kd7 {[%clk
0:00:18.8]} 42. Kxh7 {[%clk 0:01:46.8]} 42... Kxd6 {[%clk 0:00:16.5]} 43. Kg7
{[%clk 0:01:45.2]} 43... Kc5 {[%clk 0:00:12.1]} 44. h7 {[%clk 0:01:44.4]} 1-0

[Event "*** SCC Grand Prix: Titled Tuesday Blitz"]
[Site "Chess.com"]
[Date "2020.09.29"]
[Round "3"]
[White "UmarovSabir"]
[Black "Joshukid"]
[Result "0-1"]
[WhiteElo "2375"]
[BlackElo "2580"]
[TimeControl "180+1"]
[EndTime "10:26:25 PDT"]
[Termination "Joshukid won on time"]

1. e4 {[%clk 0:02:59.8]} 1... g6 {[%clk 0:02:59.6]} 2. d4 {[%clk 0:02:57.1]}
2... Bg7 {[%clk 0:02:58.9]} 3. Nc3 {[%clk 0:02:53.7]} 3... d5 {[%clk 0:02:59.2]}
4. exd5 {[%clk 0:01:51.8]} 4... Nf6 {[%clk 0:02:57.6]} 5. Bc4 {[%clk 0:01:49.7]}
5... Nbd7 {[%clk 0:02:57.5]} 6. Qf3 {[%clk 0:01:45.9]} 6... Nb6 {[%clk
0:02:57.1]} 7. Bb5+ {[%clk 0:01:45.2]} 7... Bd7 {[%clk 0:02:55.4]} 8. Bxd7+
{[%clk 0:01:44]} 8... Qxd7 {[%clk 0:02:56.3]} 9. Nge2 {[%clk 0:01:44]} 9...
Nbxd5 {[%clk 0:02:56.4]} 10. Nxd5 {[%clk 0:01:43.7]} 10... Nxd5 {[%clk
0:02:57.3]} 11. O-O {[%clk 0:01:42.9]} 11... O-O {[%clk 0:02:56.9]} 12. c3
{[%clk 0:01:41.8]} 12... c6 {[%clk 0:02:55.6]} 13. Bg5 {[%clk 0:01:39]} 13... b5
{[%clk 0:02:55.1]} 14. Rad1 {[%clk 0:01:37.1]} 14... e6 {[%clk 0:02:53.8]} 15.
Ng3 {[%clk 0:01:33.1]} 15... h6 {[%clk 0:02:50.8]} 16. Bc1 {[%clk 0:01:32.6]}
16... f5 {[%clk 0:02:50.7]} 17. Rfe1 {[%clk 0:01:31.7]} 17... Rfe8 {[%clk
0:02:50.7]} 18. Ne2 {[%clk 0:01:22.6]} 18... g5 {[%clk 0:02:46.9]} 19. Ng3
{[%clk 0:01:15.2]} 19... g4 {[%clk 0:02:39.9]} 20. Qd3 {[%clk 0:01:07.4]} 20...
Qf7 {[%clk 0:02:33.6]} 21. b3 {[%clk 0:00:34.3]} 21... h5 {[%clk 0:02:31.7]} 22.
c4 {[%clk 0:00:33.9]} 22... bxc4 {[%clk 0:02:24]} 23. bxc4 {[%clk 0:00:33.3]}
23... Nb4 {[%clk 0:02:10.9]} 24. Qb3 {[%clk 0:00:18.5]} 24... Rab8 {[%clk
0:02:11]} 25. Qa4 {[%clk 0:00:16.4]} 25... h4 {[%clk 0:02:09.9]} 26. Ne2 {[%clk
0:00:15.8]} 26... h3 {[%clk 0:02:10.3]} 27. g3 {[%clk 0:00:14.9]} 27... c5
{[%clk 0:02:08.4]} 28. dxc5 {[%clk 0:00:13.5]} 28... Qb7 {[%clk 0:02:07.8]} 29.
c6 {[%clk 0:00:11.1]} 29... Nxc6 {[%clk 0:02:06.9]} 30. Nf4 {[%clk 0:00:09.4]}
30... e5 {[%clk 0:02:05.9]} 31. Nd5 {[%clk 0:00:08.1]} 31... Ne7 {[%clk
0:02:05.1]} 32. Bg5 {[%clk 0:00:07.2]} 32... Nxd5 {[%clk 0:02:05]} 33. Rxd5
{[%clk 0:00:07.4]} 33... Rbc8 {[%clk 0:02:01.7]} 34. Red1 {[%clk 0:00:07]} 34...
Rf8 {[%clk 0:01:47.7]} 35. Qd7 {[%clk 0:00:06.8]} 35... Rc7 {[%clk 0:01:47.1]}
36. Qe6+ {[%clk 0:00:06.7]} 36... Rcf7 {[%clk 0:01:46.5]} 37. c5 {[%clk
0:00:03.4]} 37... Qb2 {[%clk 0:01:46.5]} 38. c6 {[%clk 0:00:03]} 38... Qe2
{[%clk 0:01:47]} 39. Rd7 {[%clk 0:00:02.1]} 39... Qf3 {[%clk 0:01:46.9]} 40. Qd5
{[%clk 0:00:02.2]} 40... e4 {[%clk 0:01:46.2]} 0-1

[Event "*** SCC Grand Prix: Titled Tuesday Blitz"]
[Site "Chess.com"]
[Date "2020.09.29"]
[Round "3"]
[White "BilodeauA"]
[Black "Koksik_13"]
[Result "1-0"]
[WhiteElo "2885"]
[BlackElo "2655"]
[TimeControl "180+1"]
[EndTime "10:26:26 PDT"]
[Termination "BilodeauA won by resignation"]

1. e4 {[%clk 0:03:00]} 1... e6 {[%clk 0:02:59.9]} 2. d4 {[%clk 0:02:55.6]} 2...
d5 {[%clk 0:03:00.3]} 3. Nd2 {[%clk 0:02:56.5]} 3... Nf6 {[%clk 0:02:58.9]} 4.
e5 {[%clk 0:02:56.2]} 4... Nfd7 {[%clk 0:02:59.2]} 5. f4 {[%clk 0:02:57]} 5...
c5 {[%clk 0:02:59.6]} 6. c3 {[%clk 0:02:57.7]} 6... Nc6 {[%clk 0:02:59.8]} 7.
Ndf3 {[%clk 0:02:58.5]} 7... Qb6 {[%clk 0:03:00.1]} 8. h4 {[%clk 0:02:58.7]}
8... f6 {[%clk 0:02:58.5]} 9. Bd3 {[%clk 0:02:44.3]} 9... Be7 {[%clk 0:02:52.5]}
10. Ne2 {[%clk 0:02:43.7]} 10... cxd4 {[%clk 0:02:20.8]} 11. cxd4 {[%clk
0:02:43.1]} 11... Nf8 {[%clk 0:02:20.9]} 12. a3 {[%clk 0:02:38]} 12... Bd7
{[%clk 0:02:15.9]} 13. b4 {[%clk 0:02:38]} 13... f5 {[%clk 0:01:56.3]} 14. h5
{[%clk 0:02:33.4]} 14... O-O-O {[%clk 0:01:48.2]} 15. Bd2 {[%clk 0:02:24.9]}
15... Kb8 {[%clk 0:01:47]} 16. Bc3 {[%clk 0:02:07.1]} 16... Rc8 {[%clk
0:01:47.1]} 17. Qd2 {[%clk 0:02:05.7]} 17... a6 {[%clk 0:01:43.9]} 18. Kf2
{[%clk 0:01:59.7]} 18... g6 {[%clk 0:01:38.3]} 19. Rhb1 {[%clk 0:01:52.2]} 19...
Na7 {[%clk 0:01:06.4]} 20. a4 {[%clk 0:01:52.2]} 20... Bd8 {[%clk 0:00:55.4]}
21. h6 {[%clk 0:01:45.4]} 21... Rg8 {[%clk 0:00:54.2]} 22. Ng5 {[%clk
0:01:42.7]} 22... Bxg5 {[%clk 0:00:51]} 23. fxg5 {[%clk 0:01:42.7]} 23... Qd8
{[%clk 0:00:37.9]} 24. b5 {[%clk 0:01:35]} 24... a5 {[%clk 0:00:18.8]} 25. Bxa5
{[%clk 0:01:32.6]} 25... b6 {[%clk 0:00:12.3]} 26. Bb4 {[%clk 0:01:32.4]} 26...
f4 {[%clk 0:00:12.3]} 27. a5 {[%clk 0:01:28.1]} 27... Qxg5 {[%clk 0:00:11.5]}
28. axb6 {[%clk 0:01:22]} 28... Qh4+ {[%clk 0:00:10.9]} 29. Kg1 {[%clk
0:01:20.6]} 29... Nxb5 {[%clk 0:00:10.6]} 30. Bxb5 {[%clk 0:01:17]} 30... Bxb5
{[%clk 0:00:10.6]} 31. Bd6+ {[%clk 0:01:17.2]} 31... Kb7 {[%clk 0:00:10.6]} 1-0

[Event "*** SCC Grand Prix: Titled Tuesday Blitz"]
[Site "Chess.com"]
[Date "2020.09.29"]
[Round "3"]
[White "Zkid"]
[Black "GjakanTati"]
[Result "1-0"]
[WhiteElo "2819"]
[BlackElo "2627"]
[TimeControl "180+1"]
[EndTime "10:26:26 PDT"]
[Termination "Zkid won by resignation"]

1. e4 {[%clk 0:03:00.9]} 1... e5 {[%clk 0:02:58.4]} 2. Nf3 {[%clk 0:03:00.9]}
2... Nc6 {[%clk 0:02:58.8]} 3. Bc4 {[%clk 0:03:00.9]} 3... Bc5 {[%clk
0:02:57.8]} 4. c3 {[%clk 0:03:00.4]} 4... Nf6 {[%clk 0:02:57.9]} 5. d3 {[%clk
0:03:00.6]} 5... d6 {[%clk 0:02:55]} 6. a4 {[%clk 0:02:57.4]} 6... a6 {[%clk
0:02:51.8]} 7. Bg5 {[%clk 0:02:56.1]} 7... h6 {[%clk 0:02:50.6]} 8. Bh4 {[%clk
0:02:56.2]} 8... g5 {[%clk 0:02:46.1]} 9. Bg3 {[%clk 0:02:56]} 9... Nh7 {[%clk
0:02:42.2]} 10. Nbd2 {[%clk 0:02:49.6]} 10... Qf6 {[%clk 0:02:39.1]} 11. b4
{[%clk 0:02:49.2]} 11... Ba7 {[%clk 0:02:37.9]} 12. Nb3 {[%clk 0:02:45.8]} 12...
h5 {[%clk 0:02:28.7]} 13. h4 {[%clk 0:02:43]} 13... g4 {[%clk 0:02:28.3]} 14.
Nfd2 {[%clk 0:02:37.3]} 14... Nf8 {[%clk 0:02:27.1]} 15. b5 {[%clk 0:02:25.4]}
15... Ne7 {[%clk 0:02:25.7]} 16. bxa6 {[%clk 0:02:15.5]} 16... bxa6 {[%clk
0:02:26.6]} 17. Nf1 {[%clk 0:02:11.2]} 17... Nfg6 {[%clk 0:02:25]} 18. Ne3
{[%clk 0:02:09.2]} 18... Nf4 {[%clk 0:02:23.8]} 19. d4 {[%clk 0:01:57.5]} 19...
Neg6 {[%clk 0:02:16.1]} 20. f3 {[%clk 0:01:49]} 20... Be6 {[%clk 0:02:04.1]} 21.
Bxe6 {[%clk 0:01:28.3]} 21... Qxe6 {[%clk 0:02:02.3]} 22. Nf5 {[%clk 0:01:24]}
22... Qc4 {[%clk 0:01:43.4]} 23. fxg4 {[%clk 0:01:15.7]} 23... Qxc3+ {[%clk
0:01:37.1]} 24. Kf1 {[%clk 0:01:12]} 24... Qc4+ {[%clk 0:01:32.9]} 25. Kg1
{[%clk 0:01:08.6]} 25... Ne2+ {[%clk 0:01:27.4]} 26. Kh2 {[%clk 0:01:07.4]}
26... Nxg3 {[%clk 0:01:27.8]} 27. Kxg3 {[%clk 0:01:06.3]} 27... hxg4 {[%clk
0:01:23.6]} 28. Rc1 {[%clk 0:01:03.8]} 28... Qb4 {[%clk 0:01:10.5]} 29. Rxc7
{[%clk 0:01:02.2]} 29... O-O {[%clk 0:01:06.2]} 30. h5 {[%clk 0:00:59.2]} 30...
Rab8 {[%clk 0:00:59.8]} 31. hxg6 {[%clk 0:00:57.4]} 31... Qxb3+ {[%clk
0:00:59.5]} 32. Qxb3 {[%clk 0:00:56.8]} 32... Rxb3+ {[%clk 0:00:59.9]} 33. Kxg4
{[%clk 0:00:57.4]} 33... Bxd4 {[%clk 0:00:48.9]} 34. g7 {[%clk 0:00:47.2]} 1-0

[Event "*** SCC Grand Prix: Titled Tuesday Blitz"]
[Site "Chess.com"]
[Date "2020.09.29"]
[Round "3"]
[White "redbaron8888"]
[Black "checkmatequen"]
[Result "1-0"]
[WhiteElo "2511"]
[BlackElo "2293"]
[TimeControl "180+1"]
[EndTime "10:26:26 PDT"]
[Termination "redbaron8888 won on time"]

1. e4 {[%clk 0:03:00.9]} 1... c5 {[%clk 0:02:52.9]} 2. Nf3 {[%clk 0:03:00.1]}
2... e6 {[%clk 0:02:52.6]} 3. d4 {[%clk 0:02:59.7]} 3... cxd4 {[%clk 0:02:53.5]}
4. Nxd4 {[%clk 0:03:00.5]} 4... a6 {[%clk 0:02:49.2]} 5. Bd3 {[%clk 0:02:59.7]}
5... Nf6 {[%clk 0:02:44.7]} 6. O-O {[%clk 0:02:58.7]} 6... Qc7 {[%clk
0:02:39.6]} 7. c4 {[%clk 0:02:58]} 7... Nc6 {[%clk 0:02:37.2]} 8. Nf3 {[%clk
0:02:51.3]} 8... Be7 {[%clk 0:02:29.8]} 9. Nc3 {[%clk 0:02:47.4]} 9... O-O
{[%clk 0:02:28.6]} 10. Re1 {[%clk 0:02:47.3]} 10... d6 {[%clk 0:02:28.1]} 11.
Bg5 {[%clk 0:02:42.1]} 11... Ne5 {[%clk 0:02:23.8]} 12. Rc1 {[%clk 0:02:38.8]}
12... b6 {[%clk 0:02:22.4]} 13. Nd4 {[%clk 0:02:31.9]} 13... Bb7 {[%clk
0:02:21.2]} 14. Kh1 {[%clk 0:02:25.1]} 14... Qc5 {[%clk 0:02:02.4]} 15. Be3
{[%clk 0:02:23.5]} 15... Nxd3 {[%clk 0:01:59.7]} 16. Qxd3 {[%clk 0:02:22]} 16...
Qh5 {[%clk 0:01:58.1]} 17. f3 {[%clk 0:02:21.9]} 17... d5 {[%clk 0:01:52]} 18.
exd5 {[%clk 0:02:20.7]} 18... Bd6 {[%clk 0:01:51.7]} 19. Bg1 {[%clk 0:02:19.1]}
19... exd5 {[%clk 0:01:48.6]} 20. Nf5 {[%clk 0:02:18.8]} 20... Bf4 {[%clk
0:01:42.8]} 21. Ne7+ {[%clk 0:02:08.4]} 21... Kh8 {[%clk 0:01:36.4]} 22. Rcd1
{[%clk 0:02:08.4]} 22... dxc4 {[%clk 0:01:25.8]} 23. Qxc4 {[%clk 0:02:09.3]}
23... Bb8 {[%clk 0:01:13.5]} 24. Nc6 {[%clk 0:01:51.4]} 24... Rc8 {[%clk
0:00:53.9]} 25. Rd8+ {[%clk 0:01:49.1]} 25... Rxd8 {[%clk 0:00:53.6]} 26. Nxd8
{[%clk 0:01:50]} 26... Kg8 {[%clk 0:00:47.2]} 27. Nxb7 {[%clk 0:01:47.3]} 27...
Bg3 {[%clk 0:00:46.7]} 28. Re7 {[%clk 0:01:43.2]} 28... b5 {[%clk 0:00:37.8]}
29. Qc5 {[%clk 0:01:41.2]} 29... Qh6 {[%clk 0:00:34.9]} 30. Ne4 {[%clk
0:01:31.1]} 30... Nxe4 {[%clk 0:00:21.2]} 31. Rxe4 {[%clk 0:01:30.4]} 31... Rb8
{[%clk 0:00:12.3]} 32. Na5 {[%clk 0:01:27.1]} 32... Rf8 {[%clk 0:00:03.1]} 33.
Nc6 {[%clk 0:01:23.9]} 33... Bc7 {[%clk 0:00:02.8]} 34. Ne7+ {[%clk 0:01:23.1]}
34... Kh8 {[%clk 0:00:02.3]} 35. Qxc7 {[%clk 0:01:23.8]} 1-0

[Event "*** SCC Grand Prix: Titled Tuesday Blitz"]
[Site "Chess.com"]
[Date "2020.09.29"]
[Round "3"]
[White "TrimitziosP7"]
[Black "ORS1984"]
[Result "1-0"]
[WhiteElo "2831"]
[BlackElo "2527"]
[TimeControl "180+1"]
[EndTime "10:26:30 PDT"]
[Termination "TrimitziosP7 won on time"]

1. e4 {[%clk 0:03:00.9]} 1... c5 {[%clk 0:02:59.7]} 2. b4 {[%clk 0:02:58.3]}
2... cxb4 {[%clk 0:02:57.5]} 3. a3 {[%clk 0:02:58.4]} 3... bxa3 {[%clk
0:02:56.8]} 4. c3 {[%clk 0:02:54.4]} 4... d6 {[%clk 0:02:46.3]} 5. Nxa3 {[%clk
0:02:51]} 5... e6 {[%clk 0:02:45.9]} 6. d4 {[%clk 0:02:48.4]} 6... Nf6 {[%clk
0:02:46]} 7. Bd3 {[%clk 0:02:47.9]} 7... Be7 {[%clk 0:02:46.1]} 8. Ne2 {[%clk
0:02:44.4]} 8... O-O {[%clk 0:02:36]} 9. O-O {[%clk 0:02:42.9]} 9... Nc6 {[%clk
0:02:34.2]} 10. h3 {[%clk 0:02:38.2]} 10... b6 {[%clk 0:02:33.4]} 11. Be3 {[%clk
0:02:35.4]} 11... Bb7 {[%clk 0:02:33.3]} 12. f4 {[%clk 0:02:32.8]} 12... Na5
{[%clk 0:02:21.6]} 13. Qc2 {[%clk 0:02:26]} 13... h6 {[%clk 0:02:11.7]} 14. g4
{[%clk 0:02:20.1]} 14... d5 {[%clk 0:02:07.6]} 15. e5 {[%clk 0:02:17.6]} 15...
Ne4 {[%clk 0:02:07.7]} 16. f5 {[%clk 0:02:15.3]} 16... Bg5 {[%clk 0:02:02.9]}
17. Nf4 {[%clk 0:02:08.9]} 17... Qc8 {[%clk 0:01:52]} 18. fxe6 {[%clk
0:01:45.9]} 18... fxe6 {[%clk 0:01:50.2]} 19. Rac1 {[%clk 0:01:41.3]} 19... Re8
{[%clk 0:00:54.6]} 20. Ng2 {[%clk 0:01:30.4]} 20... Ba6 {[%clk 0:00:50.4]} 21.
Bxg5 {[%clk 0:01:25.1]} 21... hxg5 {[%clk 0:00:49.5]} 22. c4 {[%clk 0:01:22.3]}
22... Nxc4 {[%clk 0:00:22.7]} 23. Bxe4 {[%clk 0:01:18]} 23... Nxa3 {[%clk
0:00:20.9]} 24. Bh7+ {[%clk 0:01:15.6]} 24... Kh8 {[%clk 0:00:20]} 25. Qg6
{[%clk 0:01:16.5]} 25... Qd7 {[%clk 0:00:14.1]} 26. Qh5 {[%clk 0:01:15.7]} 26...
g6 {[%clk 0:00:13.3]} 27. Bxg6+ {[%clk 0:01:14.8]} 27... Kg8 {[%clk 0:00:13.4]}
28. Rf7 {[%clk 0:01:14]} 1-0

[Event "*** SCC Grand Prix: Titled Tuesday Blitz"]
[Site "Chess.com"]
[Date "2020.09.29"]
[Round "3"]
[White "Sergey85Rodchenkov"]
[Black "nitpicker"]
[Result "1-0"]
[WhiteElo "2448"]
[BlackElo "2261"]
[TimeControl "180+1"]
[EndTime "10:26:32 PDT"]
[Termination "Sergey85Rodchenkov won by resignation"]

1. e4 {[%clk 0:02:57.1]} 1... c5 {[%clk 0:02:59.6]} 2. Nf3 {[%clk 0:02:56.8]}
2... Nc6 {[%clk 0:02:59.7]} 3. d4 {[%clk 0:02:56.9]} 3... cxd4 {[%clk 0:03:00]}
4. Nxd4 {[%clk 0:02:57.5]} 4... Nf6 {[%clk 0:03:00.2]} 5. Nc3 {[%clk 0:02:57.9]}
5... d6 {[%clk 0:03:00.5]} 6. Bc4 {[%clk 0:02:57.2]} 6... Qb6 {[%clk 0:02:59.3]}
7. Ndb5 {[%clk 0:02:56.6]} 7... a6 {[%clk 0:02:44.9]} 8. Be3 {[%clk 0:02:55.2]}
8... Qa5 {[%clk 0:02:43]} 9. Nd4 {[%clk 0:02:55.2]} 9... e6 {[%clk 0:02:35.6]}
10. O-O {[%clk 0:02:53.4]} 10... Be7 {[%clk 0:02:34.3]} 11. Bb3 {[%clk
0:02:52.8]} 11... O-O {[%clk 0:02:31.8]} 12. f4 {[%clk 0:02:52.2]} 12... Qc7
{[%clk 0:02:28.5]} 13. Kh1 {[%clk 0:02:51.5]} 13... b5 {[%clk 0:02:16.4]} 14. f5
{[%clk 0:02:43.9]} 14... Nxd4 {[%clk 0:02:12.9]} 15. Qxd4 {[%clk 0:02:42.5]}
15... e5 {[%clk 0:02:11.8]} 16. Qd3 {[%clk 0:02:42.1]} 16... Bb7 {[%clk
0:02:05.5]} 17. Bg5 {[%clk 0:02:40.4]} 17... Rac8 {[%clk 0:01:44.3]} 18. Bxf6
{[%clk 0:02:39.3]} 18... Bxf6 {[%clk 0:01:42.9]} 19. a4 {[%clk 0:02:26.7]} 19...
b4 {[%clk 0:01:40.3]} 20. Nd5 {[%clk 0:02:26.9]} 20... Bxd5 {[%clk 0:01:39.7]}
21. Qxd5 {[%clk 0:02:27.4]} 21... Qb6 {[%clk 0:01:26.2]} 22. Rad1 {[%clk
0:02:20.4]} 22... Qc6 {[%clk 0:01:06.3]} 23. Qd3 {[%clk 0:02:03.4]} 23... h6
{[%clk 0:01:02.9]} 24. Rf3 {[%clk 0:02:00.5]} 24... Rfd8 {[%clk 0:00:59.8]} 25.
Qe2 {[%clk 0:01:57.4]} 25... a5 {[%clk 0:00:56.7]} 26. Rfd3 {[%clk 0:01:56.9]}
26... Bg5 {[%clk 0:00:53.1]} 27. g3 {[%clk 0:01:55.2]} 27... Qc7 {[%clk
0:00:48.9]} 28. Kg2 {[%clk 0:01:54]} 28... Bf6 {[%clk 0:00:48.4]} 29. h4 {[%clk
0:01:53.6]} 29... Qe7 {[%clk 0:00:46]} 30. Kh3 {[%clk 0:01:50.9]} 30... d5
{[%clk 0:00:45.5]} 31. Rxd5 {[%clk 0:01:49.1]} 31... Rxd5 {[%clk 0:00:45.4]} 32.
Rxd5 {[%clk 0:01:49.2]} 32... Rd8 {[%clk 0:00:45.4]} 33. Qd3 {[%clk 0:01:49.1]}
33... Rxd5 {[%clk 0:00:43.6]} 34. Qxd5 {[%clk 0:01:49.2]} 34... Qc7 {[%clk
0:00:38.8]} 35. Bc4 {[%clk 0:01:34.6]} 35... Qa7 {[%clk 0:00:35.2]} 36. b3
{[%clk 0:01:28.1]} 36... Kh7 {[%clk 0:00:26.7]} 37. Qxf7 {[%clk 0:01:23]} 37...
Qxf7 {[%clk 0:00:21.2]} 38. Bxf7 {[%clk 0:01:22.7]} 38... g5 {[%clk 0:00:15.6]}
39. fxg6+ {[%clk 0:01:21]} 39... Kg7 {[%clk 0:00:15.9]} 40. Kg4 {[%clk
0:01:19.4]} 40... Be7 {[%clk 0:00:14.1]} 41. Kf5 {[%clk 0:01:18.2]} 1-0